bitfinex-derivatives/quotes_SOLF0:USTF0_20260310
["timestamp","ask_amount","ask_price","bid_price","bid_amount"]
[1773156625442,3.97179256,87.967,87.881,2.37625075]
[1773156625839,3.97179256,87.967,87.914,10.235]
[1773156627043,3.97179256,87.964,87.905,10.236]
[1773156627648,3.97179256,87.964,87.897,2.40775025]
[1773156628651,3.97179256,87.962,87.903,10.236]
[1773156629643,11.42450025,87.995,87.904,2.37935433]
[1773156629644,3.97179256,87.979,87.904,2.37935433]
[1773156630045,14.00547984,88.064,87.858,159.323]
[1773156630046,3.97179256,88.009,87.921,2.45559657]
[1773156630350,3.97179256,88.009,87.948,2.45559657]
[1773156630745,8.89416333,88.03,87.948,2.45559657]
[1773156630746,3.97179256,88.027,87.948,2.45559657]
[1773156631252,3.97179256,88.009,87.948,2.45559657]
[1773156631458,3.97179256,88.009,87.921,2.45559657]
[1773156631646,3.97179256,87.989,87.921,2.45559657]
[1773156632041,3.97179256,87.989,87.939,10.232]
[1773156632444,3.97179256,87.979,87.931,10.233]
[1773156632851,3.97179256,87.998,87.921,2.45559657]
[1773156633043,3.97179256,87.969,87.908,10.236]
[1773156633249,3.97179256,87.969,87.899,2.45537314]
[1773156633650,3.97179256,87.967,87.906,10.236]
[1773156633848,3.97179256,87.967,87.899,2.45537314]
[1773156634044,8.89416333,87.98,87.899,2.45537314]
[1773156634550,3.97179256,87.979,87.899,2.45537314]
[1773156635242,3.97179256,87.978,87.899,2.45537314]
[1773156635851,3.97179256,87.976,87.914,10.235]
[1773156636046,3.97179256,87.976,87.914,12.67152742]
[1773156636346,3.97179256,87.976,87.915,2.43652742]
[1773156637147,3.97179256,87.976,87.92,10.234]
[1773156637747,3.97179256,87.971,87.915,2.43652742]
[1773156637944,8.89416333,87.96,87.871,2.43226325]
[1773156638149,3.97179256,87.959,87.871,2.43226325]
[1773156638555,8.89416333,87.96,87.871,2.43226325]
[1773156638556,3.97179256,87.939,87.871,2.43226325]
[1773156639552,3.97179256,87.957,87.871,2.43226325]
[1773156640954,3.97179256,87.957,87.893,2.4288378]
[1773156641257,3.97179256,87.997,87.893,2.4288378]
[1773156641453,3.97179256,87.997,87.946,10.232]
[1773156642353,3.97179256,87.997,87.929,2.4288378]
[1773156642549,3.97179256,87.997,87.91,2.43804699]
[1773156642748,3.97179256,87.979,87.91,2.43804699]
[1773156642947,3.97179256,87.977,87.891,2.43804699]
[1773156643351,3.97179256,87.964,87.891,2.43804699]
[1773156643551,3.97179256,87.959,87.851,2.43804699]
[1773156643957,3.97179256,87.959,87.852,2.41128401]
[1773156644457,3.97179256,87.959,87.827,159.379]
[1773156644458,3.97179256,87.959,87.887,2.41128401]
[1773156644857,3.97179256,87.959,87.907,10.236]
[1773156645054,3.97179256,87.959,87.887,2.41128401]
[1773156645253,3.97179256,87.979,87.891,2.41128401]
[1773156645658,3.97179256,87.979,87.89,8.89416333]
[1773156645659,3.97179256,87.979,87.924,10.234]
[1773156646364,8.89416333,87.98,87.891,2.41337122]
[1773156646365,3.97179256,87.965,87.891,2.41337122]
[1773156646958,8.89416333,87.98,87.891,2.41337122]
[1773156647162,3.9852076,87.979,87.891,2.41337122]
[1773156647561,8.89416333,87.98,87.925,10.234]
[1773156647562,3.9852076,87.977,87.925,10.234]
[1773156648365,3.9852076,87.977,87.933,10.233]
[1773156648658,3.9852076,87.977,87.887,2.40330999]
[1773156648852,3.9852076,87.959,87.887,2.40330999]
[1773156649057,8.89416333,87.96,87.894,10.237]
[1773156649058,3.9852076,87.956,87.894,10.237]
[1773156649458,3.67297026,87.939,87.891,10.238]
[1773156650262,3.67297026,87.939,87.883,10.239]
[1773156650263,3.67297026,87.938,87.883,10.239]
[1773156650562,3.67297026,87.938,87.868,2.4035149]
[1773156651061,158.99,88.043,87.868,2.4035149]
[1773156651062,3.67297026,87.959,87.868,2.4035149]
[1773156651265,3.67297026,87.959,87.881,2.42532483]
[1773156651766,3.67297026,87.959,87.883,2.42532483]
[1773156652864,3.67297026,87.959,87.91,10.236]
[1773156653059,19.12316333,87.97,87.883,2.42532483]
[1773156653259,3.67297026,87.969,87.883,2.42532483]
[1773156654065,3.67297026,87.965,87.915,10.235]
[1773156654267,3.67297026,87.965,87.883,2.42532483]
[1773156656062,10.23,87.961,87.904,10.236]
[1773156656263,10.23,87.961,87.883,2.42532483]
[1773156656463,3.67297026,87.96,87.883,2.42532483]
[1773156656664,3.67297026,87.956,87.903,10.236]
[1773156656862,20.451,88.0,87.883,2.42532483]
[1773156656863,3.67297026,87.949,87.883,2.42532483]
[1773156658871,8.89416333,87.95,87.883,2.42532483]
[1773156659370,3.67297026,87.949,87.883,2.42532483]
[1773156660365,3.67297026,87.949,87.903,10.237]
[1773156660866,3.67297026,87.929,87.86,2.43614998]
[1773156661064,3.67297026,87.909,87.841,2.43614998]
[1773156661968,8.89416333,87.95,87.892,2.44797178]
[1773156662168,8.89416333,87.97,87.892,2.44797178]
[1773156662569,12.56713359,87.97,87.892,2.44797178]
[1773156662768,3.67297026,87.969,87.892,2.44797178]
[1773156664674,12.56713359,87.99,87.921,2.53959101]
[1773156665572,8.89416333,88.01,87.921,2.53959101]
[1773156665874,8.89416333,88.01,87.91,8.89416333]
[1773156665875,8.89416333,88.01,87.927,2.53959101]
[1773156666080,3.67297026,88.007,87.948,10.231]
[1773156666374,3.67297026,88.007,87.927,2.53959101]
[1773156666571,3.67297026,88.007,87.956,10.23]
[1773156667164,3.67297026,88.007,87.91,8.89416333]
[1773156667165,3.67297026,88.029,87.945,2.54355561]
[1773156667371,3.67297026,88.029,87.967,10.229]
[1773156667772,3.67297026,88.02,87.956,10.23]
[1773156668471,3.67297026,88.02,87.964,10.229]
[1773156668677,3.67297026,87.989,87.924,2.48554438]
[1773156668874,3.67297026,87.989,87.941,10.232]
[1773156669373,3.67297026,87.989,87.906,10.24246611]
[1773156669572,3.67297026,87.989,87.905,2.48554438]
[1773156669772,3.67297026,87.989,87.906,2.48554438]
[1773156669978,3.67297026,87.989,87.908,2.43053472]
[1773156670178,3.67297026,87.989,87.929,10.233]
[1773156670677,3.67297026,87.989,87.908,2.43053472]
[1773156670868,3.67297026,87.988,87.908,2.43053472]
[1773156671268,3.67297026,87.988,87.854,159.33]
[1773156671269,3.67297026,87.988,87.891,10.24246611]
[1773156671470,3.67297026,87.988,87.889,2.43053472]
[1773156671471,3.67297026,87.969,87.889,2.43053472]
[1773156671668,3.67297026,87.969,87.916,10.235]
[1773156672674,3.67297026,87.969,87.889,2.43053472]
[1773156673573,3.67297026,87.969,87.907,2.4474436]
[1773156674170,3.67297026,87.969,87.912,10.235]
[1773156674883,3.67297026,87.963,87.901,10.237]
[1773156675074,3.67297026,87.949,87.871,10.24246611]
[1773156675279,3.67297026,87.949,87.871,2.42841903]
[1773156675577,3.67297026,87.949,87.892,10.238]
[1773156676883,3.67297026,87.949,87.883,10.239]
[1773156677084,3.67297026,87.929,87.883,10.239]
[1773156677684,3.67297026,87.929,87.852,2.42933369]
[1773156677881,3.67297026,87.909,87.834,2.42933369]
[1773156678182,3.67297026,87.889,87.815,2.41707994]
[1773156679173,3.66096341,87.869,87.801,10.24246611]
[1773156679378,3.66096341,87.869,87.796,2.41976449]
[1773156679884,3.66096341,87.869,87.814,10.247]
[1773156680177,3.66096341,87.869,87.796,2.41976449]
[1773156680778,8.86405766,87.88,87.796,2.41976449]
[1773156680976,3.66096341,87.879,87.796,2.41976449]
[1773156682885,3.66096341,87.879,87.832,10.245]
[1773156683281,3.66096341,87.879,87.822,10.246]
[1773156683477,8.86405766,87.9,87.781,2.45549236]
[1773156683478,3.66096341,87.869,87.781,2.45549236]
[1773156683677,3.66096341,87.849,87.751,2.45549236]
[1773156684082,3.66096341,87.849,87.771,2.45292491]
[1773156684282,13.93265655,87.915,87.735,13.48460968]
[1773156684283,3.66096341,87.891,87.822,2.45292491]
[1773156685389,3.66096341,87.891,87.846,10.243]
[1773156685985,3.66096341,87.891,87.81,8.86405766]
[1773156686182,3.66096341,87.891,87.803,2.4133943]
[1773156687881,3.66096341,87.891,87.811,2.44547378]
[1773156688786,3.66096341,87.919,87.832,2.44547378]
[1773156689082,3.66096341,87.909,87.832,2.44547378]
[1773156689684,3.66096341,87.909,87.811,2.44547378]
[1773156690288,8.86405766,87.89,87.831,10.245]
[1773156690487,8.86405766,87.89,87.811,2.44547378]
[1773156690488,3.66096341,87.889,87.811,2.44547378]
[1773156691884,8.86405766,87.89,87.811,2.44547378]
[1773156691885,3.66096341,87.884,87.811,2.44547378]
[1773156693190,3.66096341,87.884,87.84,10.244]
[1773156693389,3.66096341,87.884,87.811,2.44547378]
[1773156693993,3.66096341,87.884,87.839,10.244]
[1773156694289,3.66096341,87.884,87.811,2.44547378]
[1773156694489,3.66096341,87.884,87.783,2.46188786]
[1773156694890,3.66096341,87.884,87.82,10.246]
[1773156695392,3.66096341,87.882,87.783,2.46188786]
[1773156695587,8.86405766,87.89,87.783,2.46188786]
[1773156695588,3.66096341,87.869,87.783,2.46188786]
[1773156696098,3.66096341,87.867,87.811,10.247]
[1773156696290,3.66096341,87.867,87.783,2.46188786]
[1773156696690,3.66096341,87.863,87.809,10.247]
[1773156696896,3.66096341,87.863,87.783,2.46188786]
[1773156697289,3.66096341,87.863,87.802,2.47578093]
[1773156697593,8.86405766,87.89,87.802,2.47578093]
[1773156697594,3.66096341,87.889,87.802,2.47578093]
[1773156697789,3.66096341,87.889,87.803,2.47578093]
[1773156698495,3.66096341,87.887,87.828,10.245]
[1773156699093,8.86405766,87.86,87.784,2.46553264]
[1773156699285,3.66096341,87.859,87.784,2.46553264]
[1773156699484,3.66096341,87.839,87.761,2.46553264]
[1773156700086,3.66096341,87.826,87.773,10.252]
[1773156700286,3.66096341,87.826,87.761,2.46553264]
[1773156701391,8.86405766,87.85,87.761,2.46553264]
[1773156701392,3.66096341,87.849,87.761,2.46553264]
[1773156701596,3.66096341,87.849,87.817,10.247]
[1773156701791,3.66096341,87.849,87.786,2.46890036]
[1773156704297,3.66096341,87.866,87.786,2.46890036]
[1773156705393,3.66096341,87.864,87.811,10.247]
[1773156705794,8.86405766,87.89,87.786,2.46890036]
[1773156705795,3.66096341,87.884,87.786,2.46890036]
[1773156707397,3.66096341,87.884,87.808,2.4822741]
[1773156707998,3.90311158,87.908,87.841,2.44702793]
[1773156708498,3.90311158,87.908,87.821,2.44702793]
[1773156708994,3.90311158,87.908,87.841,2.44702793]
[1773156709892,3.90311158,87.908,87.861,10.241]
[1773156711092,3.90311158,87.908,87.869,10.24]
[1773156711297,3.83212815,87.929,87.841,2.44702793]
[1773156712095,3.83212815,87.929,87.882,10.239]
[1773156712491,3.83212815,87.949,87.861,2.5231642]
[1773156712698,3.83212815,87.969,87.889,2.5231642]
[1773156713390,3.83212815,87.969,87.913,10.235]
[1773156713591,3.83212815,87.969,87.889,2.5231642]
[1773156713796,3.83212815,87.969,87.84,8.86405766]
[1773156713797,3.83212815,87.949,87.869,2.5231642]
[1773156714195,3.83212815,87.935,87.869,2.5231642]
[1773156714399,3.83212815,87.935,87.841,2.50431678]
[1773156715197,3.83212815,87.935,87.88,10.239]
[1773156716506,3.83212815,87.935,87.889,10.238]
[1773156717399,3.83212815,87.935,87.877,2.45253102]
[1773156717400,3.83212815,87.935,87.88,10.239]
[1773156718106,3.83212815,87.935,87.87,10.24]
[1773156719202,3.83212815,87.935,87.879,10.239]
[1773156720405,8.86405766,87.93,87.879,10.239]
[1773156720702,3.83212815,87.929,87.869,10.24]
[1773156720905,3.83212815,87.928,87.869,10.24]
[1773156721201,3.83212815,87.928,87.88,10.239]
[1773156722098,3.83212815,87.926,87.859,2.45253102]
[1773156722699,3.83212815,87.919,87.839,2.41081881]
[1773156722905,3.83212815,87.919,87.804,20.52989343]
[1773156722906,3.83212815,87.899,87.821,2.41081881]
[1773156723106,8.86405766,87.9,87.788,20.5]
[1773156723107,3.83212815,87.879,87.789,2.41081881]
[1773156723302,10.24,87.878,87.819,10.246]
[1773156723503,3.83212815,87.877,87.819,10.246]
[1773156723905,8.86405766,87.86,87.799,10.249]
[1773156724208,3.83212815,87.859,87.771,2.51051867]
[1773156724798,3.83212815,87.859,87.795,2.51051867]
[1773156725810,3.83212815,87.859,87.814,10.247]
[1773156726309,3.83212815,87.859,87.804,10.248]
[1773156727010,3.83212815,87.859,87.795,2.51051867]
[1773156729907,3.83212815,87.877,87.823,10.246]
[1773156730306,3.83212815,87.859,87.782,2.27353178]
[1773156730510,3.83212815,87.859,87.803,10.248]
[1773156731410,3.83212815,87.857,87.803,10.248]
[1773156732210,3.83212815,87.857,87.812,10.247]
[1773156732410,3.83212815,87.857,87.799,2.26903011]
[1773156732911,3.83212815,87.857,87.749,20.509]
[1773156732912,3.83212815,87.855,87.802,10.248]
[1773156734605,3.83212815,87.839,87.765,2.26732267]
[1773156735006,3.83212815,87.839,87.74,8.88699569]
[1773156735007,3.83212815,87.819,87.74,2.26732267]
[1773156737010,8.88699569,87.82,87.725,283.77754278]
[1773156737011,3.83212815,87.799,87.742,10.255]
[1773156737413,3.83212815,87.799,87.725,283.77754278]
[1773156737614,3.83212815,87.773,87.714,10.259]
[1773156738219,3.83212815,87.759,87.677,2.21943008]
[1773156739117,3.99516465,87.739,87.677,2.21943008]
[1773156739314,3.99516465,87.739,87.622,13.73648572]
[1773156739315,3.99516465,87.739,87.661,2.22692975]
[1773156739922,3.99516465,87.739,87.682,10.262]
[1773156740115,3.99516465,87.739,87.661,2.22692975]
[1773156740616,3.99516465,87.759,87.679,2.34861379]
[1773156741121,3.99516465,87.779,87.697,2.34861379]
[1773156741716,3.99516465,87.779,87.68,8.88699569]
[1773156741717,3.99516465,87.779,87.715,2.34861379]
[1773156742118,8.88699569,87.77,87.681,2.30331541]
[1773156742422,3.99516465,87.769,87.707,10.259]
[1773156742623,3.99516465,87.769,87.681,2.30331541]
[1773156743418,3.99516465,87.769,87.68,8.88699569]
[1773156743419,3.99516465,87.769,87.699,2.30331541]
[1773156743719,8.88699569,87.84,87.699,2.30331541]
[1773156743720,3.99516465,87.789,87.699,2.30331541]
[1773156744018,3.99516465,87.788,87.699,2.30331541]
[1773156744511,3.99516465,87.788,87.719,10.258]
[1773156745327,3.99516465,87.788,87.729,10.257]
[1773156745727,3.99516465,87.788,87.739,10.256]
[1773156746124,191.0800589,87.864,87.671,159.662]
[1773156746125,3.99516465,87.828,87.721,2.21490152]
[1773156746327,3.99516465,87.809,87.721,2.21490152]
[1773156747327,3.99516465,87.807,87.742,10.255]
[1773156748421,3.99516465,87.804,87.742,10.255]
[1773156749022,3.99516465,87.802,87.721,2.21490152]
[1773156749221,3.99516465,87.789,87.701,2.21093761]
[1773156750120,8.88699569,87.81,87.723,2.20575768]
[1773156750324,3.99516465,87.809,87.723,2.20575768]
[1773156750720,3.99516465,87.807,87.749,10.254]
[1773156751423,3.99516465,87.807,87.741,2.20575768]
[1773156752321,3.99516465,87.807,87.758,10.253]
[1773156752725,3.99516465,87.807,87.741,2.20575768]
[1773156753420,3.99516465,87.829,87.741,2.20575768]
[1773156753620,3.99516465,87.824,87.764,10.253]
[1773156754021,3.99516465,87.824,87.741,2.20575768]
[1773156755624,3.99516465,87.824,87.74,8.88699569]
[1773156755625,3.99516465,87.824,87.777,10.251]
[1773156755926,3.99516465,87.824,87.76,2.2321313]
[1773156756623,11.09953339,87.869,87.738,2.23178915]
[1773156756624,3.99516465,87.809,87.738,2.23178915]
[1773156757028,3.99516465,87.809,87.749,10.254]
[1773156757327,3.99516465,87.809,87.738,2.23178915]
[1773156758330,3.99516465,87.829,87.765,10.253]
[1773156758732,3.99516465,87.829,87.738,2.23178915]
[1773156758929,3.99516465,87.829,87.751,2.22461751]
[1773156759124,8.88699569,87.85,87.751,2.22461751]
[1773156759320,12.88216034,87.85,87.781,2.22461751]
[1773156759525,3.99516465,87.849,87.781,2.22461751]
[1773156759920,3.99516465,87.849,87.798,10.249]
[1773156760131,3.99516465,87.849,87.781,2.22461751]
[1773156760733,20.473,87.906,87.753,20.508]
[1773156760734,3.99516465,87.891,87.811,2.21491783]
[1773156762027,3.99516465,87.891,87.835,10.244]
[1773156762630,3.99516465,87.891,87.844,10.243]
[1773156762827,3.99516465,87.912,87.832,2.29159103]
[1773156763530,12.88216034,87.93,87.865,10.241]
[1773156763728,3.99516465,87.929,87.853,2.29159103]
[1773156764032,3.99516465,87.909,87.83,2.29159103]
[1773156764729,3.99516465,87.909,87.831,2.21053566]
[1773156765327,3.99516465,87.909,87.844,10.243]
[1773156765831,3.99516465,87.909,87.831,2.21053566]
[1773156766033,3.99516465,87.906,87.841,10.244]
[1773156766234,3.99516465,87.906,87.831,2.21053566]
[1773156767037,3.66333935,87.929,87.831,2.21053566]
[1773156767731,3.66333935,87.909,87.85,10.243]
[1773156768324,3.66333935,87.909,87.859,10.242]
[1773156769738,193.5669961,87.952,87.849,2.07105607]
[1773156769739,3.9497294,87.951,87.849,2.07105607]
[1773156770030,3.9497294,87.951,87.828,159.377]
[1773156770031,3.9497294,87.951,87.871,2.05255072]
[1773156770429,3.9497294,87.969,87.898,2.05255072]
[1773156770830,3.9497294,87.989,87.898,2.05255072]
[1773156771029,3.9497294,87.989,87.901,2.05255072]
[1773156771336,3.9497294,87.989,87.926,10.234]
[1773156771537,3.9497294,87.989,87.901,2.05255072]
[1773156771929,3.9497294,87.988,87.912,10.235]
[1773156772237,3.9497294,87.988,87.912,1.98835634]
[1773156772834,3.9497294,87.988,87.936,10.233]
[1773156773030,3.9497294,88.009,87.936,10.233]
[1773156773331,3.9497294,88.009,87.901,1.98835634]
[1773156774137,3.9497294,87.989,87.901,1.98835634]
[1773156775336,3.9497294,87.989,87.933,10.233]
[1773156775641,3.9497294,87.989,87.92,1.91460256]
[1773156775843,3.9497294,88.008,87.946,10.231]
[1773156776844,3.9497294,88.008,87.943,1.91373362]
[1773156777441,3.9497294,88.008,87.939,10.232]
[1773156777741,3.9497294,88.008,87.911,1.91373362]
[1773156778143,297.0,88.066,87.91,8.88699569]
[1773156778144,8.88699569,88.02,87.936,1.90119162]
[1773156778842,8.88699569,88.02,87.968,10.229]
[1773156780240,8.88699569,88.02,87.91,8.88699569]
[1773156780241,3.9497294,87.999,87.933,1.89959303]
[1773156780740,3.9497294,88.039,87.961,1.89959303]
[1773156780947,3.9497294,88.059,87.961,1.89959303]
[1773156781246,188.70641102,88.07,87.979,1.89959303]
[1773156781247,3.9497294,88.049,87.979,1.89959303]
[1773156782242,3.9497294,88.069,87.979,1.89959303]
[1773156782444,3.9497294,88.069,87.991,1.83858214]
[1773156782640,8.88699569,88.09,87.99,8.88699569]
[1773156782641,2.315e-05,88.062,87.994,160.91558214]
[1773156782842,2.315e-05,88.062,88.041,1.83858214]
[1773156783343,2.315e-05,88.062,87.97,43.03699569]
[1773156783344,2.315e-05,88.062,88.021,1.83858214]
[1773156784441,3.9497294,88.149,88.058,1.83420019]
[1773156784845,158.593,88.263,88.036,159.0]
[1773156784846,3.9497294,88.193,88.115,1.83420019]
[1773156785537,8.88699569,88.19,88.115,1.83420019]
[1773156785739,132.88699569,88.26,88.115,1.83420019]
[1773156785740,3.9497294,88.215,88.115,1.83420019]
[1773156785939,20.38,88.307,88.097,158.891]
[1773156785940,3.9497294,88.249,88.151,1.80460889]
[1773156786239,3.9497294,88.229,88.151,1.80460889]
[1773156786441,8.88699569,88.21,88.151,1.80460889]
[1773156786653,3.9497294,88.209,88.121,1.80460889]
[1773156787147,3.9497294,88.231,88.121,1.80460889]
[1773156787344,8.88699569,88.25,88.168,1.80460889]
[1773156787553,3.9497294,88.229,88.097,1.80460889]
[1773156787737,3.9497294,88.229,88.087,158.909]
[1773156787738,3.9497294,88.229,88.142,1.80460889]
[1773156788344,3.9497294,88.229,88.146,1.66085207]
[1773156788745,8.88699569,88.21,88.111,1.66085207]
[1773156788948,3.9497294,88.229,88.16,10.207]
[1773156789244,3.9497294,88.229,88.143,1.66085207]
[1773156789551,3.9497294,88.219,88.145,10.208]
[1773156789750,3.9497294,88.219,88.143,1.66085207]
[1773156789956,3.9497294,88.24,88.169,10.206]
[1773156790245,3.9497294,88.209,88.111,1.6727701]
[1773156790546,3.9497294,88.209,88.143,1.6727701]
[1773156790750,3.9497294,88.209,88.111,1.6727701]
[1773156790945,3.9497294,88.189,88.111,1.6727701]
[1773156791145,3.9497294,88.189,88.126,10.211]
[1773156791345,8.81719675,88.21,88.111,1.6727701]
[1773156791552,3.9497294,88.209,88.111,1.6727701]
[1773156791949,8.81719675,88.21,88.131,1.60182293]
[1773156792244,3.9497294,88.233,88.131,1.60182293]
[1773156792245,8.81719675,88.23,88.131,1.60182293]
[1773156792445,3.9497294,88.229,88.16,10.207]
[1773156793347,3.9497294,88.229,88.13,8.81719675]
[1773156793348,3.9497294,88.229,88.152,1.60182293]
[1773156793543,3.9497294,88.25,88.172,1.60182293]
[1773156793745,143.32129503,88.271,88.172,1.60182293]
[1773156794050,3.9497294,88.257,88.171,1.60833189]
[1773156794749,3.9497294,88.257,88.184,10.204]
[1773156794950,3.9497294,88.257,88.109,158.869]
[1773156794951,3.9497294,88.239,88.144,1.60833189]
[1773156795153,3.9497294,88.219,88.144,11.81633189]
[1773156795351,3.9497294,88.219,88.144,10.208]
[1773156795548,12.76692615,88.2,88.12,1.60833189]
[1773156795749,3.9497294,88.199,88.12,1.60833189]
[1773156796047,3.9497294,88.179,88.098,1.60787083]
[1773156796251,3.9497294,88.179,88.08,10.42506758]
[1773156796454,3.9497294,88.179,88.105,10.213]
[1773156796841,3.9497294,88.179,88.048,158.979]
[1773156796842,3.9497294,88.159,88.015,20.447]
[1773156797044,3.9497294,88.159,88.051,1.60787083]
[1773156797243,3.9497294,88.139,88.08,10.216]
[1773156797444,3.9497294,88.139,88.051,1.60787083]
[1773156798144,3.9497294,88.139,88.077,10.216]
[1773156798340,3.9497294,88.139,88.051,1.60787083]
[1773156799253,3.9497294,88.139,88.088,10.215]
[1773156799450,3.9497294,88.139,88.051,1.60787083]
[1773156799949,3.9497294,88.139,88.073,10.217]
[1773156801347,3.9497294,88.139,88.051,1.60787083]
[1773156801348,3.9497294,88.139,88.031,1.88591056]
[1773156801743,3.9497294,88.139,88.03,8.81719675]
[1773156801744,3.9497294,88.139,88.057,1.88591056]
[1773156803049,3.9497294,88.139,88.079,10.216]
[1773156803246,3.9497294,88.139,88.057,1.88591056]
[1773156803452,3.82170806,88.149,88.061,1.91451738]
[1773156803751,3.82170806,88.149,88.098,10.214]
[1773156803953,3.82170806,88.149,88.061,1.91451738]
[1773156804150,12.63890481,88.17,88.113,10.212]
[1773156804453,3.82170806,88.169,88.087,1.92635685]
[1773156804855,3.82170806,88.159,88.087,1.92635685]
[1773156805357,3.82170806,88.159,88.066,1.92635685]
[1773156807056,3.82170806,88.139,88.066,1.92635685]
[1773156807251,3.82170806,88.139,88.092,10.214]
[1773156807649,3.82170806,88.139,88.04,8.81719675]
[1773156807650,3.82170806,88.179,88.081,1.93015846]
[1773156808144,3.82170806,88.179,88.086,1.93385251]
[1773156808349,3.82170806,88.179,88.085,158.913]
[1773156808350,3.82170806,88.179,88.101,1.93385251]
[1773156808544,8.81719675,88.2,88.101,1.93385251]
[1773156808545,12.63890481,88.2,88.101,1.93385251]
[1773156808744,3.82170806,88.199,88.101,1.93385251]
[1773156809351,3.82170806,88.199,88.154,10.207]
[1773156809750,11.58002315,88.258,88.125,1.93385251]
[1773156809751,8.81719675,88.22,88.125,1.93385251]
[1773156809950,3.82170806,88.219,88.125,1.93385251]
[1773156810856,3.82170806,88.219,88.153,10.207]
[1773156812853,12.63890481,88.24,88.151,1.97670834]
[1773156813249,12.63890481,88.24,88.194,10.203]
[1773156813455,3.82170806,88.24,88.151,1.97670834]
[1773156814960,3.82170806,88.24,88.197,10.202]
[1773156815358,11.58002315,88.258,88.172,1.99054063]
[1773156815758,3.82170806,88.257,88.172,1.99054063]
[1773156815954,3.82170806,88.257,88.196,10.203]
[1773156816157,3.82170806,88.239,88.151,2.020741]
[1773156818661,3.82170806,88.239,88.177,10.205]
[1773156818862,3.82170806,88.239,88.151,2.020741]
[1773156819173,3.82170806,88.239,88.153,2.01998214]
[1773156819662,3.82170806,88.239,88.173,2.01998214]
[1773156821267,3.82170806,88.239,88.15,2.14111214]
[1773156821458,3.82170806,88.219,88.13,8.81719675]
[1773156821662,3.82170806,88.219,88.128,2.14111214]
[1773156821858,3.82170806,88.219,88.11,8.81719675]
[1773156822057,3.82170806,88.219,88.108,2.11300093]
[1773156822058,3.82170806,88.199,88.108,2.11300093]
[1773156822360,3.82170806,88.199,88.111,2.11300093]
[1773156823061,3.82170806,88.199,88.114,2.11300093]
[1773156823359,3.82170806,88.199,88.09,8.81719675]
[1773156823360,3.82170806,88.222,88.185,10.204]
[1773156823663,3.82170806,88.222,88.135,2.11300093]
[1773156824363,3.82170806,88.222,88.18,10.204]
[1773156824568,3.82170806,88.222,88.133,2.37000216]
[1773156825065,3.82170806,88.209,88.133,2.37000216]
[1773156825665,3.82170806,88.209,88.112,2.37000216]
[1773156826161,3.82170806,88.209,88.116,2.39016081]
[1773156826459,3.82170806,88.209,88.098,158.889]
[1773156826460,3.82170806,88.209,88.121,2.39016081]
[1773156827366,3.82170806,88.209,88.175,10.205]
[1773156827566,8.81719675,88.23,88.141,2.38753333]
[1773156827770,3.90559483,88.229,88.167,10.206]
[1773156827956,3.90559483,88.257,88.16,8.81719675]
[1773156828161,3.90559483,88.249,88.161,2.33111893]
[1773156829662,3.90559483,88.249,88.196,10.202]
[1773156829870,3.90559483,88.249,88.164,2.36921581]
[1773156830461,3.90559483,88.249,88.185,2.36921581]
[1773156831866,3.90559483,88.249,88.221,10.2]
[1773156832067,3.90559483,88.249,88.185,2.36921581]
[1773156832770,3.90559483,88.249,88.144,20.418]
[1773156832970,4.00690652,88.229,88.145,2.36406561]
[1773156833773,4.00690652,88.229,88.184,10.204]
[1773156834065,4.00690652,88.219,88.131,2.3120058]
[1773156834271,4.00690652,88.219,88.164,10.206]
[1773156834467,4.00690652,88.219,88.131,2.3120058]
[1773156836367,4.00690652,88.219,88.133,2.28223425]
[1773156837067,4.00690652,88.219,88.19,10.203]
[1773156837369,4.00690652,88.249,88.19,10.203]
[1773156839172,4.00690652,88.243,88.18,10.204]
[1773156839365,4.00690652,88.243,88.135,2.29918259]
[1773156839570,8.81719675,88.25,88.135,2.29918259]
[1773156839571,4.00690652,88.219,88.135,2.29918259]
[1773156839971,4.00690652,88.217,88.135,2.29918259]
[1773156840370,4.00690652,88.217,88.092,158.899]
[1773156840371,4.00690652,88.159,88.07,9.82506214]
[1773156840577,4.00690652,88.139,88.057,2.26802526]
[1773156840877,8.81719675,88.13,88.057,2.26802526]
[1773156841075,8.81719675,88.13,88.035,2.26802526]
[1773156841076,4.00690652,88.129,88.035,2.26802526]
[1773156841270,4.00690652,88.089,88.014,2.26802526]
[1773156841475,4.00690652,88.089,87.992,2.26802526]
[1773156841669,4.00690652,88.089,88.016,10.223]
[1773156841874,4.00690652,88.089,87.992,2.26802526]
[1773156842070,4.00690652,88.059,87.978,2.23717374]
[1773156842273,4.00690652,88.059,88.009,10.224]
[1773156842473,4.00690652,88.059,87.978,2.23717374]